Cogmind - Beta 12 X1 @@@ ROGUE MODE // 2022.07.04 @ 09:50:29 Player: aoemica Result: Destroyed by Y-45 Defender with Heavy Assault Rifle Performance ------------- Evolutions (0) 0 Regions Visited (4) 800 Robots Destroyed (27) 135 Value Destroyed (633) 633 Prototype IDs (2) 40 Alien Tech Used (0) 0 Bonus (0) 0 TOTAL SCORE: 1608 Bonus ------- None Cogmind --------- Core Integrity 0/250 Matter 262/300 Energy 47/100 System Corruption 2% Temperature Warm (180) Movement Treading (160) Location -9/Mines Parts ------- > --- POWER (1) -------- (None) > --- PROPULSION (2) --- Light Treads Light Treads > --- UTILITY (2) ------ Seismic Detector Transport Network Coupler > --- WEAPON (2) ------- Beam Rifle Particle Gun > --- INVENTORY (5) ---- Light Treads Heat Sink High-capacity Storage Unit Rocket Launcher Peak State ------------ > --- POWER ------------ Light Nuclear Core > --- PROPULSION ------- Aluminum Leg Aluminum Leg > --- UTILITY ---------- Small Storage Unit Light Armor Plating > --- WEAPON ----------- EM Pulse Gun Small Laser > --- INVENTORY -------- Ion Engine Light Treads Light Treads Aluminum Leg Wheel Wheel Heat Sink Improved Heat Sink [Rating: 10] Favorites ----------- Power Ion Engine Engine Ion Engine Power Core Light Nuclear Core Propulsion Light Treads Treads Light Treads Leg Aluminum Leg Utility Light Armor Plating Device Seismic Detector Storage Small Storage Unit Processor Transport Network Coupler Protection Light Armor Plating Weapon Small Laser Energy Gun Small Laser Ballistic Gun Light Assault Rifle Launcher Rocket Launcher Build | -11 -10 -10 -10 -9 ------- Run | Scr Mat Min Exi Min Slots Evolved . | . . . . . Power . | . . . . . Propulsion . | . . . . . Utility . | . . . . . Weapon . | . . . . . Parts Attached 23 | . 12 7 . 4 Power 5 | . 5 . . . Engine 4 | . 4 . . . Core 1 | . 1 . . . Reactor . | . . . . . Propulsion 4 | . 2 1 . 1 Treads 4 | . 2 1 . 1 Leg . | . . . . . Wheel . | . . . . . Hover . | . . . . . Flight . | . . . . . Utility 5 | . 3 1 . 1 Device 1 | . . . . 1 Storage 1 | . 1 . . . Processor 1 | . . 1 . . Hackware . | . . . . . Protection 2 | . 2 . . . Artifact . | . . . . . Weapon 9 | . 2 5 . 2 Energy Gun 7 | . 2 3 . 2 Energy Cannon . | . . . . . Ballistic Gun 1 | . . 1 . . Ballistic Cannon . | . . . . . Launcher 1 | . . 1 . . Special Weapon . | . . . . . Impact Weapon . | . . . . . Slashing Weapon . | . . . . . Piercing Weapon . | . . . . . Special Melee Weapon . | . . . . . Unidentified Prototypes . | . . . . . Parts Lost 7 | . 1 5 . 1 Power 1 | . . 1 . . Propulsion 1 | . . . . 1 Utility 1 | . . 1 . . Weapon 4 | . 1 3 . . Highest Loss Streak 5 | . 1 5 . 1 To Critical Strikes . | . . . . . Average Slot Usage (%) 93 | . 99 86 42 73 Engine 11 | . 13 10 . . Treads 18 | . 14 28 28 28 Leg 9 | . 13 . . . Storage 11 | . 14 10 . . Processor 2 | . . 3 14 14 Protection 11 | . 13 10 . . Energy Gun 23 | . 28 14 . 18 Ballistic Gun 1 | . . 6 . . Naked Turns . | . . . . . Heaviest Build 31 | 13 31 31 . 7 Greatest Support 40 | 20 40 40 3 40 Greatest Overweight (x) . | . . . . . Average Overweight (x) . | . . . . . Largest Inventory Capacity 15 | . 15 15 5 5 Average Capacity 10 | . 10 12 5 5 Most Carried 15 | . 15 15 5 5 Average Carried 10 | . 10 12 5 4 Final Capacity 15 | 8 15 5 5 5 Final Carried 15 | 6 15 5 5 4 Class Distribution -------------------- 100% | Mutant Dominant Class ---------------- Mutant | -10/Materials Mutant | -10/Mines Mutant | -10/Exiles Mutant | -9/Mines Resources | -11 -10 -10 -10 -9 ----------- Run | Scr Mat Min Exi Min Matter Collected 398 | 200 160 38 . . Remotely . | . . . . . Salvage Created 980 | . 876 104 . . Parts 64 | . 55 9 . . Haulers Intercepted 2 | . 2 . . . Recyclers Shooed 7 | . 5 2 . . Parts Field Recycled . | . . . . . Retrieved Matter . | . . . . . Parts Self-Destructed . | . . . . . Prevented . | . . . . . Kills | -11 -10 -10 -10 -9 ------- Run | Scr Mat Min Exi Min Combat Hostiles Destroyed 21 | . 14 7 . . Guns 21 | . 14 7 . . Classes Destroyed 5 | . 4 1 . . Hauler 2 | . 2 . . . Recycler 2 | . 2 . . . Watcher 2 | . 2 . . . Swarmer 7 | . . 7 . . Grunt 14 | . 14 . . . Best Kill Streak 5 | . 5 3 . . Combat Bots Only 5 | . 5 3 . . Max Kills in Single Turn 2 | . 2 2 . . Gunslinging 1 | . 1 . . . Exploded . | . . . . . Melee . | . . . . . Uniques/NPCs Destroyed . | . . . . . Combat | -11 -10 -10 -10 -9 -------- Run | Scr Mat Min Exi Min Damage Taken 1286 | . 422 713 . 151 Core 254 | . 45 166 . 43 Absorbed by Shields . | . . . . . Core Remaining (%) 100 | 100 . . . . Volleys Fired 94 | . 75 15 . 4 Largest 2 | . 2 2 . 2 Hottest 121 | . 90 80 . 121 Shots Fired 151 | . 113 30 . 8 Gun 151 | . 113 30 . 8 Cannon . | . . . . . Launcher . | . . . . . Special . | . . . . . Kinetic 8 | . . 8 . . Thermal 102 | . 73 21 . 8 Explosive . | . . . . . Electromagnetic 41 | . 40 1 . . Robot Hit Streak 14 | . 14 6 . 3 Robot Miss Streak 3 | . 3 2 . 1 Penetration Max . | . . . . . Secondary Targets 2 | . 1 1 . . Max Gunslinging Chain 1 | . 1 1 . . Shots Hit Robots 96 | . 74 18 . 4 Core Hits 50 | . 38 11 . 1 Critical Kills . | . . . . . Critical Parts Destroyed . | . . . . . Critical Strikes 2 | . 2 . . . Corrupt 2 | . 2 . . . Melee Attacks . | . . . . . Impact . | . . . . . Slashing . | . . . . . Piercing . | . . . . . Sneak Attacks . | . . . . . Combat Hostiles . | . . . . . Follow-up Attacks . | . . . . . Damage Inflicted 1386 | . 1090 236 . 60 Guns 1257 | . 993 209 . 55 Cannons . | . . . . . Explosions . | . . . . . Melee . | . . . . . Ramming 129 | . 97 27 . 5 Kinetic 20 | . . 20 . . Thermal 806 | . 574 177 . 55 Explosive . | . . . . . Electromagnetic 431 | . 419 12 . . Impact . | . . . . . Slashing . | . . . . . Piercing . | . . . . . Highest Corruption 2 | . 2 2 2 2 Average Corruption 2 | . 2 2 2 2 Corruption Purged . | . . . . . Corruption Blocked . | . . . . . Effects 29 | . 19 8 1 1 Message Errors 6 | . 2 4 . . Matter Fused 12 | . 8 3 . 1 Heat Flow Errors 2 | . 2 . . . Energy Discharges 2 | . . 1 1 . Data Loss (minor) 4 | . 4 . . . Data Loss (major) 2 | . 2 . . . Misfires 1 | . 1 . . . Overload Shots . | . . . . . Overflow Damage 8 | . 8 . . . Projectiles . | . . . . . Explosions . | . . . . . Melee 8 | . 8 . . . Knockbacks 1 | . 1 . . . Impact 1 | . 1 . . . Kinetic . | . . . . . Secondary . | . . . . . Self-Inflicted Damage . | . . . . . Shots . | . . . . . Rammed 22 | . 6 15 . 1 Targets Rammed 50 | . 34 15 . 1 Kicked 27 | . 27 . . . Crushed 1 | . 1 . . . Highest Temperature 220 | . 220 97 . 171 Average Temperature 72 | . 84 38 . 71 Received Heat Transfer 279 | . 234 . . 45 Siege Activations . | . . . . . Robots Corrupted . | . . . . . Combat Hostiles . | . . . . . Parts Fried . | . . . . . Impact Corruptions 1 | . 1 . . . Robots Melted . | . . . . . Combat Hostiles . | . . . . . Parts Melted 1 | . 1 . . . Heat Transferred 1928 | . 1405 375 . 148 Parts Sabotaged . | . . . . . Parts Stolen . | . . . . . Parts Stripped . | . . . . . Power Chain Reactions . | . . . . . Missiles Intercepted . | . . . . . Alert | -11 -10 -10 -10 -9 ------- Run | Scr Mat Min Exi Min Peak Influence 347 | . 347 300 . 18 Initial 80 | . . 80 . . Average 150 | . 164 153 . . Maximum Alert Level 1 | . 1 1 . . Low Security (%) 59 | . 54 61 . 100 Level 1 40 | . 45 38 . . Level 2 . | . . . . . Level 3 . | . . . . . Level 4 . | . . . . . Level 5 . | . . . . . High Security . | . . . . . Max Security . | . . . . . Squads Dispatched 7 | . 7 . . . Investigation 4 | . 4 . . . Extermination . | . . . . . Reinforcement 3 | . 3 . . . Assault . | . . . . . Garrison . | . . . . . Intercept . | . . . . . Searches Triggered . | . . . . . Construction Impeded . | . . . . . Haulers Reinforced . | . . . . . Active Scanning Responses . | . . . . . Cargo Convoy Interrupts . | . . . . . Stealth | -11 -10 -10 -10 -9 --------- Run | Scr Mat Min Exi Min Distress Signals 1 | . 1 . . . Communications Jammed . | . . . . . Distress Signals . | . . . . . Times Spotted 54 | . 32 20 . 2 Peak Tracking Total 8 | . 4 8 . 2 Tactical Retreats 5 | . 2 3 . . Traps | -11 -10 -10 -10 -9 ------- Run | Scr Mat Min Exi Min Traps Triggered 3 | . 3 . . . Indirectly . | . . . . . Trap Hack Attempts . | . . . . . Triggered . | . . . . . Disarmed . | . . . . . Reprogrammed . | . . . . . Reused . | . . . . . Traps Extracted . | . . . . . Installed . | . . . . . Triggered . | . . . . . Machines | -11 -10 -10 -10 -9 ---------- Run | Scr Mat Min Exi Min Machines Disabled . | . . . . . Max in Single Turn . | . . . . . Machines Sabotaged . | . . . . . Garrisons Compromised . | . . . . . Overloaded Fab Kills . | . . . . . Hacking | -11 -10 -10 -10 -9 --------- Run | Scr Mat Min Exi Min Machines Accessed 9 | . 8 . 1 . Terminals 5 | . 5 . . . Fabricators . | . . . . . Repair Stations 1 | . 1 . . . Recycling Units 2 | . 2 . . . Scanalyzers . | . . . . . Garrison Access . | . . . . . Total Hacks 18 | . 17 . 1 . Successful 12 | . 11 . 1 . Failed 6 | . 6 . . . Catastrophic 1 | . 1 . . . Database Lockouts . | . . . . . Manual 14 | . 14 . . . Terminals 13 | . 13 . . . Fabricators . | . . . . . Repair Stations 2 | . 2 . . . Recycling Units 2 | . 2 . . . Scanalyzers . | . . . . . Garrison Access . | . . . . . Terminal Hacks 7 | . 6 . 1 . Record 1 | . . . 1 . Part Schematic 2 | . 2 . . . Robot Analysis 2 | . 2 . . . Prototype ID Bank 1 | . 1 . . . Transport Status 1 | . 1 . . . Fabricator Hacks . | . . . . . Repair Station Hacks 1 | . 1 . . . Scan Component 1 | . 1 . . . Recycling Unit Hacks . | . . . . . Scanalyzer . | . . . . . Garrison Access Hacks . | . . . . . Unauthorized Hacks 4 | . 4 . . . Terminals 2 | . 2 . . . Botnet 2 | . 2 . . . Fabricators . | . . . . . Repair Stations . | . . . . . Recycling Units 2 | . 2 . . . Tunnel 2 | . 2 . . . Scanalyzers . | . . . . . Garrison Access . | . . . . . Data Cores Recovered . | . . . . . Used . | . . . . . Hacking Detections 5 | . 5 . . . Full Trace Events . | . . . . . Feedback Events . | . . . . . Feedback Blocked . | . . . . . Robot Schematics Acquired . | . . . . . Robots Built . | . . . . . Authchips . | . . . . . Time . | . . . . . Total Robot Build Rating . | . . . . . Part Schematics Acquired 2 | . 2 . . . Parts Built . | . . . . . Authchips . | . . . . . Time . | . . . . . Total Part Build Rating . | . . . . . Parts Repaired . | . . . . . Time . | . . . . . Parts Recycled . | . . . . . Recycled Matter . | . . . . . Retrieved Matter . | . . . . . Retrieved Components . | . . . . . Parts Scanalyzed . | . . . . . Part Schematics Acquired . | . . . . . Parts Damaged . | . . . . . Bothacking | -11 -10 -10 -10 -9 ------------ Run | Scr Mat Min Exi Min Used RIF Installer . | . . . . . Robots Hacked . | . . . . . Non-combat . | . . . . . Combat . | . . . . . Robot Hacks Applied . | . . . . . Relay Couplers Released . | . . . . . Fabnet Peak Effective % . | . . . . . Robots Rewired . | . . . . . Allies Hacked . | . . . . . Hacks Repelled . | . . . . . Allies | -11 -10 -10 -10 -9 -------- Run | Scr Mat Min Exi Min Total Allies . | . . . . . Largest Group . | . . . . . Highest-Rated Group . | . . . . . Highest-Rated Ally . | . . . . . Total Orders . | . . . . . Ally Attacks . | . . . . . Total Damage . | . . . . . Kills . | . . . . . Allies Corrupted . | . . . . . Allies Melted . | . . . . . Intel | -11 -10 -10 -10 -9 ------- Run | Scr Mat Min Exi Min Robot Analysis Total 2 | . 2 . . . Derelict Logs Recovered 1 | . . . . 1 Drone Launches . | . . . . . Drone Recoveries . | . . . . . Exploration | -11 -10 -10 -10 -9 ------------- Run | Scr Mat Min Exi Min Turns Passed 2908 | . 1990 610 103 205 Spaces Moved 1925 | 1 1089 437 206 192 Core 497 | . . 177 206 114 Treads 901 | . 563 260 . 78 Legs 527 | 1 526 . . . Wheels . | . . . . . Hover . | . . . . . Flight . | . . . . . Fastest Speed 50 | 120 120 50 50 50 Average Speed 120 | 120 140 115 50 94 Slowest Speed 160 | 120 160 160 50 160 Overloaded Moves . | . . . . . Propulsion Burnouts . | . . . . . Robots Hopped . | . . . . . Cave-ins Triggered . | . . . . . Exploration Rate (%) 55 | 3 97 68 60 50 Regions Visited 4 Branch Regions 3 Pre-discovered Areas 5 | . 2 1 1 1 Known Exits Taken . | . . . . . Unknown Exits Taken 4 | 1 1 1 1 . Scrap Searched 1 | . . 1 . . Spaces Dug . | . . . . . Terrain Destroyed . | . . . . . Melee . | . . . . . Projectile . | . . . . . AOE . | . . . . . Terrain Rammed . | . . . . . Walls Destroyed . | . . . . . Machines Disabled . | . . . . . Actions | -11 -10 -10 -10 -9 --------- Run | Scr Mat Min Exi Min Total 2352 | . 1435 506 205 206 Wait 217 | . 188 25 . 4 Move 1921 | . 1088 436 205 192 Hop . | . . . . . Pick Up 21 | . 19 1 . 1 Fast Attach 10 | . 7 1 . 2 Attach 7 | . 2 3 . 2 Detach 2 | . 1 1 . . Swap 6 | . 3 3 . . Drop 24 | . 18 6 . . Fire 94 | . 75 15 . 4 Melee . | . . . . . Ram . | . . . . . Kick 27 | . 27 . . . Crush 23 | . 7 15 . 1 Escape Stasis . | . . . . . Rewire . | . . . . . Trap . | . . . . . Miscellaneous . | . . . . . Route ------- -11/Scrapyard -10/Materials (discovered 4 exits: [*Mat x3] / [*Min]) -10/Mines (discovered 3 exits: [*Mat x2] / *Exi) -10/Exiles -9/Mines (discovered 2 exits: [*Mat x2]) History --------- Turn | Location | Event 1 | -11/Scrapyard | Discovered new exit (range 0) 1 | -11/Scrapyard | Entered Materials 265 | -10/Materials | Discovered new exit (range 8) 305 | -10/Materials | Build established: Mutant 613 | -10/Materials | Discovered new exit (range 6) 851 | -10/Materials | Discovered new exit (range 16) 954 | -10/Materials | Discovered new exit (range 15) 1991 | -10/Materials | Entered Mines 2220 | -10/Mines | Received a Rocket Launcher from a helpful Derelict 2223 | -10/Mines | Discovered new exit (range 11) 2298 | -10/Mines | Deemed a non-threat by the Exiles lab entrance 2298 | -10/Mines | Discovered new exit (range 5) 2357 | -10/Mines | Discovered new exit (range 15) 2440 | -10/Mines | Assembled infested the area 2461 | -10/Mines | Learned location of Storage (-8) 2475 | -10/Mines | Core integrity fell below 50% 2477 | -10/Mines | Core integrity fell below 20% 2504 | -10/Mines | Lost 5 parts (1p1u3w) 2601 | -10/Mines | Entered Exiles 2614 | -10/Exiles | Met 8R-AWN 2622 | -10/Exiles | Met EX-HEX 2637 | -10/Exiles | Met EX-BIN 2644 | -10/Exiles | Met EX-DEC 2653 | -10/Exiles | Learned location of Zion (-7) 2700 | -10/Exiles | Discovered new exit (range 10) 2704 | -10/Exiles | Entered Mines 2759 | -9/Mines | Discovered new exit (range 14) 2803 | -9/Mines | Discovered new exit (range 8) 2909 | -9/Mines | Destroyed by Y-45 Defender with Heavy Assault Rifle Last Messages --------------- PINNED - TO ALL TESTERS: Stay away from Zion. Imprinter means us harm and is serious about it. World map updated: -7/Zion. 02700_ EXIT=FOUND LOCATION=UNKNOWN GOAL=ESCAPE 02706_ System corrupted: Matter fused (-5). 02759_ EXIT=FOUND 02761_ K-01 Serf collects debris. 02763_ Acquired Particle Gun. 02765_ K-01 Serf collects debris. 02772_ Acquired Beam Rifle. 02776_ K-01 Serf collects debris. 02780_ Acquired Heat Sink. 02782_ K-01 Serf collects debris. 02803_ EXIT=FOUND 02854_ Acquired derelict log, extracted data. World map confirmed: -8/Storage. 02866_ Slammed into T-07 Excavator. 02906_ Lgt. Treads destroyed. Map ----- +----------------------------------------------------+ | | | | | | | | | | | | | | | | | | | | | | | | | | | | | | | | | ?????????????????????????????????????????????????? | | ?????????????????##??????????????????????????????? | | ?????????????????#""?????????????????????????????? | | ####?????????????# ????????????????????????????? | | ##?????????????# ???????????????????????????? | | #????????????###Y/#####??????????????????????? | | " #????????????# Y #??????????????????????? | | " #?????????????# #??????????????????????? | | " #??????????????# #??????????????????????? | | ##????#####????# @#??????????????????????? | | ##??## ##???# #??????????????????????? | | #### ##### #??????????????????????? | | ## #??????????????????????? | | ### ####### ###??????????????????????? | | # ##?# ####### #????????????????????????? | | ## < ###??# #????????????????????????? | | ?## ##????######### #????????????????????????? | | ??## ##????????????# ???????????????????????? | | ???# #???????????? ??????????????????????? | | ???# #????????????# ?????????????????????? | | ##?# ##????????????# ???????????????????? | | #?## ##?????????????## ##??????????????????? | | ##### #????????????????# ##???????????????????? | | #?????????????????####????????????????????? | | ##### #?????????????????????????????????????????? | | #???# #?????????????????????????????????????????? | | ##### #?????????????????????????????????????????? | | #?????????????????????????????????????????? | | #?????????????????????????????????????????? | | #######?????????????????????????????????????????? | | #???????????????????????????????????????????????? | | ##??????????????????????????????????????????????? | | ##?????????????????????????????????????????????? | | #?????????????????????????????????????????????? | +----------------------------------------------------+ Best States ------------- Heat Dissipation 25 Energy Generation 14 Energy Capacity 250 Matter Stores 300 Matter Capacity 300 Sight Range 16 Terrain Scan Density 10 Armor Coverage 150 Evasion (%) 55 Recoil Reduction 2 Item Schematics ----------------- Huge Storage Unit | -10/Materials | Hacked Hcp. Storage Unit | -10/Materials | Hacked Robot Schematics ------------------ None Fabricated ------------ Nothing Alien Tech Used ----------------- None Achievements -------------- None Challenges ------------ None Game ------ Seed ThunderChipCharge Manual? 0 Play Time 00:15:51 Cumulative 745.5 hours Start 2022.07.04 @ 09:35:33 End 2022.07.04 @ 09:50:29 Sessions 1 Manual Loads 0 Difficulty Rogue Special Mode None Game No. 326 Rogue 325 Adventurer 1 Explorer 0 Win Type - Total 84 Types 24/9/13/3/2/1/30/1/1 Lore% 98 Gallery% 99 Achievement% 90 Wizard Run 0 Options --------- ASCII 1 Keyboard 1 Movement Numpad Keybinds 0 Fullscreen 0 Font 18/Smallcaps Map View 76x50 Tactical HUD 1 Map Filters NONE Filters NONE Steam 1 RUN: fbbd51d7-3b87-487c-bf86-b21c05b2518e